fUSD/lending_fUSD_20240526
["ID","MTS","AMOUNT","RATE_DAILY","PERIOD"]
[328001753,1716766309724,-152.58409749,0.00029041,4]
[328001754,1716766309735,-500.0,0.00029041,4]
[328001755,1716766309745,-500.0,0.00029041,4]
[328001756,1716766309755,-500.0,0.00029041,4]
[328001757,1716766309764,-556.5958797,0.00029041,4]
[328001758,1716766309774,-500.0,0.00029041,4]
[328001759,1716766309783,-500.0,0.00029041,4]
[328001760,1716766309793,-500.0,0.00029041,4]
[328001761,1716766309803,-179.56,0.00029041,4]
[328001762,1716766309812,-500.0,0.00029041,4]
[328001763,1716766309821,-500.0,0.00029041,4]
[328001764,1716766309831,-808.3,0.00029041,4]
[328001765,1716766309841,-500.0,0.00029041,4]
[328001766,1716766309850,-500.0,0.00029041,4]
[328001767,1716766309859,-500.0,0.00029041,4]
[328001768,1716766309869,-500.0,0.00029041,4]
[328001769,1716766309879,-500.0,0.00029041,4]
[328001770,1716766309888,-500.0,0.00029041,4]
[328001771,1716766309898,-500.0,0.00029041,4]
[328001772,1716766309907,-500.0,0.00029041,4]
[328001773,1716766309917,-500.0,0.00029041,4]
[328001774,1716766309927,-500.0,0.00029041,4]
[328001775,1716766309937,-1217.19,0.00029041,4]
[328001776,1716766309946,-500.0,0.00029041,4]
[328001777,1716766309956,-520.62,0.00029041,4]
[328001778,1716766309966,-500.0,0.00029041,4]
[328001779,1716766309975,-500.0,0.00029041,4]
[328001780,1716766309984,-500.0,0.00029041,4]
[328001781,1716766309994,-500.0,0.00029041,4]
[328001782,1716766310003,-500.0,0.00029041,4]
[328001783,1716766310013,-500.0,0.00029041,4]
[328001784,1716766310022,-500.0,0.00029041,4]
[328001785,1716766310031,-500.0,0.00029041,4]
[328001786,1716766310040,-500.0,0.00029041,4]
[328001787,1716766310049,-500.0,0.00029041,4]
[328001788,1716766310059,-500.0,0.00029041,4]
[328001789,1716766310068,-500.0,0.00029041,4]
[328001790,1716766310077,-500.0,0.00029041,4]
[328001791,1716766310087,-1635.18,0.00029041,4]
[328001792,1716766310259,-500.0,0.00029041,4]
[328001793,1716766310269,-605.07440565,0.00029041,4]
[328001794,1716766310279,-500.0,0.00029041,4]
[328001795,1716766310289,-500.0,0.00029041,4]
[328001796,1716766310298,-500.0,0.00029041,4]
[328001797,1716766310308,-500.0,0.00029041,4]
[328001798,1716766310317,-500.0,0.00029041,4]
[328001799,1716766310326,-988.23,0.00029041,4]
[328001800,1716766310335,-500.0,0.00029041,4]
[328001801,1716766310345,-500.0,0.00029041,4]
[328001802,1716766310355,-951.24,0.00029041,4]
[328001803,1716766310366,-500.0,0.00029041,4]
[328001804,1716766310376,-4763.6,0.00029041,4]
[328001805,1716766310385,-1408.55,0.00029041,4]
[328001806,1716766310395,-500.0,0.00029041,4]
[328001807,1716766310404,-773.49,0.00029041,4]
[328001808,1716766310414,-500.0,0.00029041,4]
[328001809,1716766310423,-500.0,0.00029041,4]
[328001810,1716766310433,-500.0,0.00029041,4]
[328001811,1716766310442,-1097.24,0.00029041,4]
[328001812,1716766310451,-1770.78,0.00029041,4]
[328001813,1716766310461,-500.0,0.00029041,4]
[328001814,1716766310470,-500.0,0.00029041,4]
[328001815,1716766310480,-500.0,0.00029041,4]
[328001816,1716766310490,-1231.06,0.00029041,4]
[328001817,1716766310501,-12518.24,0.00029041,4]
[328001818,1716766310511,-500.0,0.00029041,4]
[328001819,1716766310521,-1324.66,0.00029041,4]
[328001820,1716766310531,-296.27767735,0.00029041,4]
[328001821,1716766310541,-716.14,0.00029041,4]
[328001822,1716766310551,-500.0,0.00029041,4]
[328001823,1716766310560,-500.0,0.00029041,4]
[328001824,1716766310570,-548.08,0.00029041,4]
[328001825,1716766310580,-500.0,0.00029041,4]
[328001826,1716766310590,-500.0,0.00029041,4]
[328001827,1716766310599,-808.36,0.00029041,4]
[328001828,1716766310609,-206.76368306,0.00029041,4]
[328001829,1716766310619,-500.0,0.00029041,4]
[328001830,1716766310629,-648.03,0.00029041,4]
[328001831,1716766310639,-500.0,0.00029041,4]
[328001832,1716766310649,-2740.82,0.00029041,4]
[328001833,1716766310659,-1164.95,0.00029041,4]
[328001834,1716766310669,-500.0,0.00029041,4]
[328001835,1716766310678,-500.0,0.00029041,4]
[328001836,1716766310688,-595.23,0.00029041,4]
[328001837,1716766310697,-566.07,0.00029041,4]
[328001838,1716766310707,-745.74,0.00029041,4]
[328001839,1716766310716,-563.58,0.00029041,4]
[328001840,1716766310726,-1642.45,0.00029041,4]
[328001841,1716766310736,-538.9,0.00029041,4]
[328001842,1716766310745,-500.0,0.00029041,4]
[328001843,1716766310754,-500.0,0.00029041,4]
[328001844,1716766310763,-500.0,0.00029041,4]
[328001845,1716766310772,-500.0,0.00029041,4]
[328001846,1716766310782,-500.0,0.00029041,4]
[328001847,1716766310792,-500.0,0.00029041,4]
[328001848,1716766310802,-5551.36,0.00029041,4]
[328001849,1716766310811,-500.0,0.00029041,4]
[328001850,1716766310822,-500.0,0.00029041,4]
[328001851,1716766310834,-500.0,0.00029041,4]
[328001852,1716766310844,-500.0,0.00029041,4]
[328001853,1716766310854,-500.0,0.00029041,4]
[328001854,1716766310864,-500.0,0.00029041,4]
[328001855,1716766310874,-593.26,0.00029041,4]
[328001856,1716766310884,-972.91,0.00029041,4]
[328001857,1716766310893,-500.0,0.00029041,4]
[328001858,1716766310903,-561.18,0.00029041,4]
[328001859,1716766310912,-500.0,0.00029041,4]
[328001860,1716766310922,-881.68,0.00029041,4]
[328001861,1716766310931,-575.29,0.00029041,4]
[328001862,1716766310941,-500.0,0.00029041,4]
[328001863,1716766310950,-500.0,0.00029041,4]
[328001864,1716766310960,-1259.79,0.00029041,4]
[328001865,1716766310970,-500.0,0.00029041,4]
[328001866,1716766310979,-521.96526498,0.00029041,4]
[328001867,1716766310991,-469.35,0.00029041,4]
[328001868,1716766311000,-605.76,0.00029041,4]
[328001869,1716766311010,-3536.07,0.00029041,4]
[328001870,1716766311019,-500.0,0.00029041,4]
[328001871,1716766311028,-850.48,0.00029041,4]
[328001872,1716766311038,-500.0,0.00029041,4]
[328001873,1716766311048,-826.83,0.00029041,4]
[328001874,1716766311058,-500.0,0.00029041,4]
[328001875,1716766311067,-500.0,0.00029041,4]
[328001876,1716766311077,-1946.87,0.00029041,4]
[328001877,1716766311087,-500.0,0.00029041,4]
[328001878,1716766311096,-1471.62,0.00029041,4]
[328001879,1716766311106,-528.67099999,0.00029041,4]
[328001880,1716766311116,-500.0,0.00029041,4]
[328001881,1716766311125,-500.0,0.00029041,4]
[328001882,1716766311134,-500.0,0.00029041,4]
[328001883,1716766311143,-1299.03,0.00029041,4]
[328001884,1716766311153,-874.0,0.00029041,4]
[328001885,1716766311163,-654.22,0.00029041,4]
[328001886,1716766311173,-500.0,0.00029041,4]
[328001887,1716766311183,-500.0,0.00029041,4]
[328001888,1716766311193,-500.0,0.00029041,4]
[328001889,1716766311202,-509.25,0.00029041,4]
[328001890,1716766311211,-500.0,0.00029041,4]
[328001891,1716766311221,-777.17,0.00029041,4]
[328001892,1716766311230,-1565.29,0.00029041,4]
[328001893,1716766311246,-500.0,0.00029041,4]
[328001894,1716766311255,-855.17,0.00029041,4]
[328001895,1716766311264,-701.7,0.00029041,4]
[328001896,1716766311274,-500.0,0.00029041,4]
[328001897,1716766311283,-500.0,0.00029041,4]
[328001898,1716766311292,-8290.14,0.00029041,4]
[328001899,1716766311302,-500.0,0.00029041,4]
[328001900,1716766311313,-761.08,0.00029041,4]
[328001901,1716766311323,-500.0,0.00029041,4]
[328001902,1716766311333,-599.5,0.00029041,4]
[328001903,1716766311343,-500.0,0.00029041,4]
[328001904,1716766311352,-500.0,0.00029041,4]
[328001905,1716766311362,-500.0,0.00029041,4]
[328001906,1716766311371,-643.13,0.00029041,4]
[328001907,1716766311380,-500.0,0.00029041,4]
[328001908,1716766311389,-500.0,0.00029041,4]
[328001909,1716766311398,-500.0,0.00029041,4]
[328001910,1716766311408,-500.0,0.00029041,4]
[328001911,1716766311417,-4278.59,0.00029041,4]
[328001912,1716766311427,-500.0,0.00029041,4]
[328001913,1716766311436,-500.0,0.00029041,4]
[328001914,1716766311445,-500.0,0.00029041,4]
[328001915,1716766311454,-6703.51,0.00029041,4]
[328001916,1716766311464,-500.0,0.00029041,4]
[328001917,1716766311474,-1138.56,0.00029041,4]
[328001918,1716766311484,-500.0,0.00029041,4]
[328001919,1716766311494,-500.0,0.00029041,4]
[328001920,1716766311503,-880.9,0.00029041,4]
[328001921,1716766311513,-500.0,0.00029041,4]
[328001922,1716766311522,-1237.34,0.00029041,4]
[328001923,1716766311531,-500.0,0.00029041,4]
[328001924,1716766311540,-772.3,0.00029041,4]
[328001925,1716766311549,-891.81,0.00029041,4]
[328001926,1716766311558,-500.0,0.00029041,4]
[328001927,1716766311567,-588.35,0.00029041,4]
[328001928,1716766311577,-500.0,0.00029041,4]
[328001929,1716766311586,-500.0,0.00029041,4]
[328001930,1716766311595,-500.0,0.00029041,4]
[328001931,1716766311605,-930.12,0.00029041,4]
[328001932,1716766311615,-723.38,0.00029041,4]
[328001933,1716766311625,-500.0,0.00029041,4]
[328001934,1716766311634,-3019.87,0.00029041,4]
[328001935,1716766311643,-500.0,0.00029041,4]
[328001936,1716766311653,-500.0,0.00029041,4]
[328001937,1716766311662,-500.0,0.00029041,4]
[328001938,1716766311672,-500.0,0.00029041,4]
[328001939,1716766311681,-500.0,0.00029041,4]
[328001940,1716766311691,-500.0,0.00029041,4]
[328001941,1716766311700,-500.0,0.00029041,4]
[328001942,1716766311710,-500.0,0.00029041,4]
[328001943,1716766311719,-500.0,0.00029041,4]
[328001944,1716766311728,-737.24,0.00029041,4]
[328001945,1716766311738,-500.0,0.00029041,4]
[328001946,1716766311748,-3353.66,0.00029041,4]
[328001947,1716766311757,-500.0,0.00029041,4]
[328001948,1716766311767,-500.0,0.00029041,4]
[328001949,1716766311776,-1655.73,0.00029041,4]
[328001950,1716766311786,-500.0,0.00029041,4]
[328001951,1716766311795,-628.01,0.00029041,4]
[328001952,1716766311804,-557.95,0.00029041,4]
[328001953,1716766311813,-500.0,0.00029041,4]
[328001954,1716766311823,-1130.95,0.00029041,4]
[328001955,1716766311831,-500.0,0.00029041,4]
[328001956,1716766311841,-500.0,0.00029041,4]
[328001957,1716766311850,-2845.63,0.00029041,4]
[328001958,1716766311860,-500.0,0.00029041,4]
[328001959,1716766311869,-1950.47,0.00029041,4]
[328001960,1716766311878,-902.66,0.00029041,4]
[328001961,1716766311887,-786.5,0.00029041,4]
[328001962,1716766311896,-7054.88,0.00029041,4]
[328001963,1716766311905,-1344.42,0.00029041,4]
[328001964,1716766311914,-500.0,0.00029041,4]
[328001965,1716766311923,-1190.17,0.00029041,4]
[328001966,1716766311933,-500.0,0.00029041,4]
[328001967,1716766311942,-693.7,0.00029041,4]
[328001968,1716766311951,-500.0,0.00029041,4]
[328001969,1716766311960,-500.0,0.00029041,4]
[328001970,1716766311969,-792.19,0.00029041,4]
[328001971,1716766311978,-500.0,0.00029041,4]
[328001972,1716766311988,-500.0,0.00029041,4]
[328001973,1716766311997,-500.0,0.00029041,4]
[328001974,1716766312006,-500.0,0.00029041,4]
[328001975,1716766312015,-500.0,0.00029041,4]
[328001976,1716766312024,-500.0,0.00029041,4]
[328001977,1716766312033,-500.0,0.00029041,4]
[328001978,1716766312042,-1616.54,0.00029041,4]
[328001979,1716766312051,-753.14,0.00029041,4]
[328001980,1716766312060,-500.0,0.00029041,4]
[328001981,1716766312070,-735.26,0.00029041,4]
[328001982,1716766312079,-500.0,0.00029041,4]
[328001983,1716766312089,-1478.27,0.00029041,4]
[328001984,1716766312098,-1672.85,0.00029041,4]
[328001985,1716766312107,-500.0,0.00029041,4]
[328001986,1716766312117,-500.0,0.00029041,4]
[328001987,1716766312126,-500.0,0.00029041,4]
[328001988,1716766312135,-500.0,0.00029041,4]
[328001989,1716766312144,-1055.1,0.00029041,4]
[328001990,1716766312154,-1222.14,0.00029041,4]
[328001991,1716766312163,-564.5,0.00029041,4]
[328001992,1716766312172,-500.0,0.00029041,4]
[328001993,1716766312182,-2006.47,0.00029041,4]
[328001994,1716766312191,-1219.52,0.00029041,4]
[328001995,1716766312201,-500.0,0.00029041,4]
[328001996,1716766312210,-500.0,0.00029041,4]
[328001997,1716766312220,-860.6,0.00029041,4]
[328001998,1716766312230,-500.0,0.00029041,4]
[328001999,1716766312244,-1285.66,0.00029041,4]
[328002000,1716766312253,-500.0,0.00029041,4]
[328002001,1716766312263,-500.0,0.00029041,4]
[328002002,1716766312273,-500.0,0.00029041,4]
[328002003,1716766312282,-1245.87,0.00029041,4]
[328002004,1716766312292,-500.0,0.00029041,4]
[328002005,1716766312302,-500.0,0.00029041,4]
[328002006,1716766312312,-500.0,0.00029041,4]
[328002007,1716766312322,-500.0,0.00029041,4]
[328002008,1716766312331,-500.0,0.00029041,4]
[328002009,1716766312340,-214.94753464,0.00029041,4]
[328002010,1716766312350,-1054.38,0.00029041,4]
[328002011,1716766312360,-686.51,0.00029041,4]
[328002012,1716766312369,-500.0,0.00029041,4]
[328002013,1716766312378,-500.0,0.00029041,4]
[328002014,1716766312388,-500.0,0.00029041,4]
[328002015,1716766312398,-500.0,0.00029041,4]
[328002016,1716766312407,-2090.3,0.00029041,4]
[328002017,1716766312416,-500.0,0.00029041,4]
[328002018,1716766312427,-500.0,0.00029041,4]
[328002019,1716766312437,-500.0,0.00029041,4]
[328002020,1716766312447,-4489.53,0.00029041,4]
[328002021,1716766312456,-500.0,0.00029041,4]
[328002022,1716766312466,-500.0,0.00029041,4]
[328002023,1716766312476,-500.0,0.00029041,4]
[328002024,1716766312486,-500.0,0.00029041,4]
[328002025,1716766312495,-500.0,0.00029041,4]
[328002026,1716766312505,-500.0,0.00029041,4]
[328002027,1716766312515,-500.0,0.00029041,4]
[328002028,1716766312525,-500.0,0.00029041,4]
[328002029,1716766312534,-660.84,0.00029041,4]
[328002030,1716766312543,-500.0,0.00029041,4]
[328002031,1716766312552,-1241.08,0.00029041,4]
[328002032,1716766312561,-500.0,0.00029041,4]
[328002033,1716766312571,-500.0,0.00029041,4]
[328002034,1716766312580,-1622.1,0.00029041,4]
[328002035,1716766312589,-1457.46,0.00029041,4]
[328002036,1716766312599,-500.0,0.00029041,4]
[328002037,1716766312608,-519.03,0.00029041,4]
[328002038,1716766312618,-500.0,0.00029041,4]
[328002039,1716766312627,-500.0,0.00029041,4]
[328002040,1716766312637,-767.41,0.00029041,4]
[328002041,1716766312647,-540.35,0.00029041,4]
[328002042,1716766312656,-500.0,0.00029041,4]
[328002043,1716766312665,-535.71,0.00029041,4]
[328002044,1716766312675,-500.0,0.00029041,4]
[328002045,1716766312684,-3162.97,0.00029041,4]
[328002046,1716766312694,-754.4,0.00029041,4]
[328002047,1716766312704,-1446.35,0.00029041,4]
[328002048,1716766312713,-500.0,0.00029041,4]
[328002049,1716766312723,-500.0,0.00029041,4]
[328002050,1716766312733,-500.0,0.00029041,4]
[328002051,1716766312743,-500.0,0.00029041,4]
[328002052,1716766312753,-500.0,0.00029041,4]
[328002053,1716766312762,-656.74,0.00029041,4]
[328002054,1716766312772,-500.0,0.00029041,4]
[328002055,1716766312781,-698.24,0.00029041,4]
[328002056,1716766312790,-1154.85,0.00029041,4]
[328002057,1716766312800,-1228.33,0.00029041,4]
[328002058,1716766312809,-1334.79,0.00029041,4]
[328002059,1716766312818,-962.47,0.00029041,4]
[328002060,1716766312827,-500.0,0.00029041,4]
[328002061,1716766312836,-500.0,0.00029041,4]
[328002062,1716766312845,-594.66,0.00029041,4]
[328002063,1716766312855,-500.0,0.00029041,4]
[328002064,1716766312864,-267.82,0.00029041,4]
[328002065,1716766312873,-1214.89532928,0.00029098,2]
[328002066,1716766312883,-157.6,0.000291,2]
[328002067,1716766312892,-166.26,0.000291,2]
[328002068,1716766312901,-500.0,0.00029198,2]
[328002069,1716766312910,-500.0,0.00029198,2]
[328002070,1716766312919,-1000.0,0.00029233,2]
[328002071,1716766312928,-150.0,0.000293,18]
[328002072,1716766312938,-2489.65,0.00029314,4]
[328002073,1716766312947,-500.0,0.00029315,4]
[328002074,1716766312956,-500.0,0.00029315,4]
[328002075,1716766312964,-500.0,0.00029315,4]
[328002076,1716766313124,-500.0,0.00029315,4]
[328002077,1716766313133,-500.0,0.00029315,4]
[328002078,1716766313143,-500.0,0.00029315,4]
[328002079,1716766313151,-500.0,0.00029315,4]
[328002080,1716766313161,-500.0,0.00029315,4]
[328002081,1716766313170,-563.32,0.00029315,4]
[328002082,1716766313179,-500.0,0.00029315,4]
[328002083,1716766313188,-500.0,0.00029315,4]
[328002084,1716766313197,-500.0,0.00029315,4]
[328002085,1716766313207,-500.0,0.00029315,4]
[328002086,1716766313216,-500.0,0.00029315,4]
[328002087,1716766313225,-265.67,0.00029315,4]
[328002088,1716766313235,-350.92,0.00029315,4]
[328002089,1716766313250,-500.0,0.00029315,4]
[328002090,1716766313259,-500.0,0.00029315,4]
[328002091,1716766313268,-944.44,0.00029315,4]
[328002092,1716766313278,-153.6,0.00029315,4]
[328002093,1716766313289,-500.0,0.00029315,4]
[328002094,1716766313298,-500.0,0.00029315,4]
[328002095,1716766313307,-500.0,0.00029315,4]
[328002096,1716766313319,-500.0,0.00029315,4]
[328002097,1716766313329,-189.66,0.00029315,4]
[328002098,1716766313338,-500.0,0.00029315,4]
[328002099,1716766313347,-189.87,0.00029315,4]
[328002100,1716766313357,-424.04,0.00029315,4]
[328002101,1716766313366,-791.42,0.00029315,4]
[328002102,1716766313376,-500.0,0.00029315,4]
[328002103,1716766313386,-309.83,0.00029315,4]
[328002104,1716766313395,-500.0,0.00029315,4]
[328002105,1716766313404,-500.0,0.00029315,4]
[328002106,1716766313413,-500.0,0.00029315,4]
[328002107,1716766313423,-500.0,0.00029315,4]
[328002108,1716766313432,-238.92,0.00029315,4]
[328002109,1716766313442,-500.0,0.00029315,4]
[328002110,1716766313451,-500.0,0.00029315,4]
[328002111,1716766313460,-822.31,0.00029315,4]
[328002112,1716766313469,-500.0,0.00029315,4]
[328002113,1716766313478,-380.4,0.00029315,4]
[328002114,1716766313489,-500.0,0.00029315,4]
[328002115,1716766313498,-500.0,0.00029315,4]
[328002116,1716766313507,-500.0,0.00029315,4]
[328002117,1716766313518,-571.43,0.00029315,4]
[328002118,1716766313527,-620.76,0.00029315,4]
[328002119,1716766313537,-500.0,0.00029315,4]
[328002120,1716766313546,-500.0,0.00029315,4]
[328002121,1716766313555,-500.0,0.00029315,4]
[328002122,1716766313565,-500.0,0.00029315,4]
[328002123,1716766313574,-474.99,0.00029315,4]
[328002124,1716766313583,-507.1,0.00029315,4]
[328002125,1716766313593,-500.0,0.00029315,4]
[328002126,1716766313602,-500.0,0.00029315,4]
[328002127,1716766313611,-500.0,0.00029315,4]
[328002128,1716766313621,-500.0,0.00029315,4]
[328002129,1716766313631,-500.0,0.00029315,4]
[328002130,1716766313640,-500.0,0.00029315,4]
[328002131,1716766313650,-576.1,0.00029315,4]
[328002132,1716766313659,-697.5,0.00029315,4]
[328002133,1716766313668,-500.0,0.00029315,4]
[328002134,1716766313677,-500.0,0.00029315,4]
[328002135,1716766313686,-547.78,0.00029315,4]
[328002136,1716766313696,-633.05,0.00029315,4]
[328002137,1716766313706,-745.11,0.00029315,4]
[328002138,1716766313715,-500.0,0.00029315,4]
[328002139,1716766313725,-323.68,0.00029315,4]
[328002140,1716766313734,-540.04,0.00029315,4]
[328002141,1716766313743,-500.0,0.00029315,4]
[328002142,1716766313753,-500.0,0.00029315,4]
[328002143,1716766313763,-500.0,0.00029315,4]
[328002144,1716766313771,-500.0,0.00029315,4]
[328002145,1716766313781,-560.84,0.00029315,4]
[328002146,1716766313791,-500.0,0.00029315,4]
[328002147,1716766313800,-500.0,0.00029315,4]
[328002148,1716766313810,-500.0,0.00029315,4]
[328002149,1716766313819,-500.0,0.00029315,4]
[328002150,1716766313828,-325.9,0.00029315,4]
[328002151,1716766313837,-500.0,0.00029315,4]
[328002152,1716766313847,-548.59,0.00029315,4]
[328002153,1716766313856,-500.0,0.00029315,4]
[328002154,1716766313865,-500.0,0.00029315,4]
[328002155,1716766313874,-521.76,0.00029315,4]
[328002156,1716766313884,-500.0,0.00029315,4]
[328002157,1716766313893,-500.0,0.00029315,4]
[328002158,1716766313903,-546.32,0.00029315,4]
[328002159,1716766313912,-265.96,0.00029315,4]
[328002160,1716766313921,-503.3,0.00029315,4]
[328002161,1716766313930,-500.0,0.00029315,4]
[328002162,1716766313940,-500.0,0.00029315,4]
[328002163,1716766313949,-500.0,0.00029315,4]
[328002164,1716766313959,-500.0,0.00029315,4]
[328002165,1716766313968,-500.0,0.00029315,4]
[328002166,1716766313977,-500.0,0.00029315,4]
[328002167,1716766313987,-500.0,0.00029315,4]
[328002168,1716766313998,-500.0,0.00029315,4]
[328002169,1716766314007,-513.73,0.00029315,4]
[328002170,1716766314017,-500.0,0.00029315,4]
[328002171,1716766314027,-500.0,0.00029315,4]
[328002172,1716766314036,-500.0,0.00029315,4]
[328002173,1716766314046,-500.0,0.00029315,4]
[328002174,1716766314055,-500.0,0.00029315,4]
[328002175,1716766314065,-1125.41,0.00029315,4]
[328002176,1716766314075,-500.0,0.00029315,4]
[328002177,1716766314084,-294.22,0.00029315,4]
[328002178,1716766314093,-500.0,0.00029315,4]
[328002179,1716766314102,-534.62,0.00029315,4]
[328002180,1716766314111,-280.11,0.00029315,4]
[328002181,1716766314120,-500.0,0.00029315,4]
[328002182,1716766314129,-500.0,0.00029315,4]
[328002183,1716766314138,-482.17160943,0.00029315,4]
[328002184,1716766314148,-540.75,0.00029315,4]
[328002185,1716766314157,-500.0,0.00029315,4]
[328002186,1716766314167,-500.0,0.00029315,4]
[328002187,1716766314176,-500.0,0.00029315,4]
[328002188,1716766314185,-545.96,0.00029315,4]
[328002189,1716766314194,-500.0,0.00029315,4]
[328002190,1716766314204,-1235.19,0.00029315,4]
[328002191,1716766314213,-500.0,0.00029315,4]
[328002192,1716766314223,-500.0,0.00029315,4]
[328002193,1716766314232,-729.16,0.00029315,4]
[328002194,1716766314248,-500.0,0.00029315,4]
[328002195,1716766314257,-236.74,0.00029315,4]
[328002196,1716766314267,-500.0,0.00029315,4]
[328002197,1716766314276,-500.0,0.00029315,4]
[328002198,1716766314286,-500.0,0.00029315,4]
[328002199,1716766314295,-500.0,0.00029315,4]
[328002200,1716766314305,-500.0,0.00029315,4]
[328002201,1716766314315,-500.0,0.00029315,4]
[328002202,1716766314324,-500.0,0.00029315,4]
[328002203,1716766314334,-500.0,0.00029315,4]
[328002204,1716766314343,-435.27,0.00029315,4]
[328002205,1716766314352,-500.0,0.00029315,4]
[328002206,1716766314362,-500.0,0.00029315,4]
[328002207,1716766314372,-500.0,0.00029315,4]
[328002208,1716766314382,-500.0,0.00029315,4]
[328002209,1716766314393,-500.0,0.00029315,4]
[328002210,1716766314403,-541.50827213,0.00029315,4]
[328002211,1716766314412,-864.88,0.00029315,4]
[328002212,1716766314421,-500.0,0.00029315,4]
[328002213,1716766314431,-500.0,0.00029315,4]
[328002214,1716766314441,-500.0,0.00029315,4]
[328002215,1716766314451,-500.0,0.00029315,4]
[328002216,1716766314461,-594.38,0.00029315,4]
[328002217,1716766314470,-500.0,0.00029315,4]
[328002218,1716766314479,-500.0,0.00029315,4]
[328002219,1716766314489,-963.86,0.00029315,4]
[328002220,1716766314498,-500.0,0.00029315,4]
[328002221,1716766314508,-500.0,0.00029315,4]
[328002222,1716766314517,-500.0,0.00029315,4]
[328002223,1716766314526,-500.0,0.00029315,4]
[328002224,1716766314535,-500.0,0.00029315,4]
[328002225,1716766314544,-874.71,0.00029315,4]
[328002226,1716766314554,-835.43,0.00029315,4]
[328002227,1716766314564,-500.0,0.00029315,4]
[328002228,1716766314573,-529.68,0.00029315,4]
[328002229,1716766314582,-1097.89,0.00029315,4]
[328002230,1716766314591,-1126.6,0.00029315,4]
[328002231,1716766314601,-500.0,0.00029315,4]
[328002232,1716766314610,-500.0,0.00029315,4]
[328002233,1716766314620,-500.0,0.00029315,4]
[328002234,1716766314629,-866.64,0.00029315,4]
[328002235,1716766314639,-500.0,0.00029315,4]
[328002236,1716766314648,-524.51,0.00029315,4]
[328002237,1716766314658,-500.0,0.00029315,4]
[328002238,1716766314667,-500.0,0.00029315,4]
[328002239,1716766314677,-500.0,0.00029315,4]
[328002240,1716766314686,-554.06,0.00029315,4]
[328002241,1716766314695,-500.0,0.00029315,4]
[328002242,1716766314705,-163.1,0.00029315,4]
[328002243,1716766314714,-500.0,0.00029315,4]
[328002244,1716766314724,-500.0,0.00029315,4]
[328002245,1716766314733,-500.0,0.00029315,4]
[328002246,1716766314745,-500.0,0.00029315,4]
[328002247,1716766314755,-500.0,0.00029315,4]
[328002248,1716766314765,-500.0,0.00029315,4]
[328002249,1716766314774,-500.0,0.00029315,4]
[328002250,1716766314783,-500.0,0.00029315,4]
[328002251,1716766314793,-500.0,0.00029315,4]
[328002252,1716766314802,-500.0,0.00029315,4]